[Event "Titled Tuesday Blitz August 16 Early 2022"]
[White "Veiga, Jose Francisco R P Neves"]
[Black "Shapiro, Daniel"]
[WhiteFideId "1930087"]
[BlackFideId "2001780"]
[WhiteElo "2378"]
[BlackElo "2284"]
[Result "1-0"]
[Round "08"]
[TimeControl "180+2"]
[Date "2022.08.18"]
[WhiteClock "0:00:00"]
[BlackClock "0:00:00"]

1. e4 {[%clk 0:00:00]}  c5 {[%clk 0:00:00]} 2. Nf3 {[%clk 0:00:00]}  e6 {[%clk 0:00:00]} 3. d4 {[%clk 0:00:00]}  cxd4 {[%clk 0:00:00]} 4. Nxd4 {[%clk 0:00:00]}  a6 {[%clk 0:00:00]} 5. Bd3 {[%clk 0:00:00]}  g6 {[%clk 0:00:00]} 6. O-O {[%clk 0:00:00]}  Bg7 {[%clk 0:00:00]} 7. Nb3 {[%clk 0:00:00]}  Ne7 {[%clk 0:00:00]} 8. c4 {[%clk 0:00:00]}  Nbc6 {[%clk 0:00:00]} 9. Nc3 {[%clk 0:00:00]}  b6 {[%clk 0:00:00]} 10. Be3 {[%clk 0:00:00]}  O-O {[%clk 0:00:00]} 11. Rc1 {[%clk 0:00:00]}  d5 {[%clk 0:00:00]} 12. cxd5 {[%clk 0:00:00]}  exd5 {[%clk 0:00:00]} 13. exd5 {[%clk 0:00:00]}  Nb4 {[%clk 0:00:00]} 14. Be4 {[%clk 0:00:00]}  Ra7 {[%clk 0:00:00]} 15. d6 {[%clk 0:00:00]}  Nf5 {[%clk 0:00:00]} 16. Bf4 {[%clk 0:00:00]}  Bb7 {[%clk 0:00:00]} 17. a3 {[%clk 0:00:00]}  Bxc3 {[%clk 0:00:00]} 18. Bxb7 {[%clk 0:00:00]}  Bxb2 {[%clk 0:00:00]} 19. Rc8 {[%clk 0:00:00]}  Qd7 {[%clk 0:00:00]} 20. Rxf8+ {[%clk 0:00:00]}  Kxf8 {[%clk 0:00:00]} 21. Bf3 {[%clk 0:00:00]}  Bxa3 {[%clk 0:00:00]} 22. Qa1 {[%clk 0:00:00]}  Qa4 {[%clk 0:00:00]} 23. Qh8# {[%clk 0:00:00]} 1-0


[Site "https://www.chess.com"]

[Event "Titled Tuesday Blitz August 16 Early 2022"]
[White "Vlassov, Nikolai"]
[Black "Grandelius, Nils"]
[WhiteFideId "4103360"]
[BlackFideId "1710400"]
[WhiteElo "2324"]
[BlackElo "2617"]
[Result "0-1"]
[Round "08"]
[TimeControl "180+1"]
[Date "2022.08.16"]
[WhiteClock "0:00:05"]
[BlackClock "0:00:03"]

1. e4 {[%clk 0:03:00]}  c5 {[%clk 0:02:59]} 2. c3 {[%clk 0:03:00]}  d5 {[%clk 0:02:56]} 3. exd5 {[%clk 0:03:01]}  Nf6 {[%clk 0:02:57]} 4. d4 {[%clk 0:03:02]}  cxd4 {[%clk 0:02:55]} 5. Qxd4 {[%clk 0:02:57]}  Nxd5 {[%clk 0:02:55]} 6. Bc4 {[%clk 0:02:53]}  e6 {[%clk 0:02:55]} 7. Bxd5 {[%clk 0:02:51]}  exd5 {[%clk 0:02:54]} 8. Nf3 {[%clk 0:02:48]}  Nc6 {[%clk 0:02:55]} 9. Qd3 {[%clk 0:02:37]}  Be7 {[%clk 0:02:54]} 10. O-O {[%clk 0:02:37]}  O-O {[%clk 0:02:55]} 11. Be3 {[%clk 0:02:36]}  Bg4 {[%clk 0:02:50]} 12. Nbd2 {[%clk 0:02:36]}  Bh5 {[%clk 0:02:46]} 13. Nd4 {[%clk 0:02:30]}  Bg6 {[%clk 0:02:43]} 14. Qb5 {[%clk 0:02:30]}  Qd7 {[%clk 0:02:37]} 15. Rfe1 {[%clk 0:02:27]}  Bd6 {[%clk 0:02:34]} 16. Nf1 {[%clk 0:02:25]}  a6 {[%clk 0:02:29]} 17. Qb3 {[%clk 0:02:21]}  Na5 {[%clk 0:02:25]} 18. Qd1 {[%clk 0:02:16]}  Nc4 {[%clk 0:02:24]} 19. Bc1 {[%clk 0:02:12]}  Rfe8 {[%clk 0:02:21]} 20. Ne3 {[%clk 0:02:11]}  Bc5 {[%clk 0:01:57]} 21. b3 {[%clk 0:02:05]}  Ne5 {[%clk 0:01:48]} 22. a4 {[%clk 0:01:34]}  Rac8 {[%clk 0:01:40]} 23. Bd2 {[%clk 0:01:24]}  Nd3 {[%clk 0:01:35]} 24. Rf1 {[%clk 0:01:20]}  Bxd4 {[%clk 0:01:19]} 25. cxd4 {[%clk 0:01:20]}  h5 {[%clk 0:01:18]} 26. Qf3 {[%clk 0:01:07]}  Re4 {[%clk 0:00:54]} 27. Rad1 {[%clk 0:00:44]}  Rxd4 {[%clk 0:00:49]} 28. Qg3 {[%clk 0:00:35]}  h4 {[%clk 0:00:46]} 29. Qf3 {[%clk 0:00:32]}  Ne5 {[%clk 0:00:43]} 30. Qe2 {[%clk 0:00:26]}  Bd3 {[%clk 0:00:44]} 31. Qh5 {[%clk 0:00:26]}  Bxf1 {[%clk 0:00:38]} 32. Qxe5 {[%clk 0:00:25]}  Re4 {[%clk 0:00:33]} 33. Qf5 {[%clk 0:00:16]}  Qxf5 {[%clk 0:00:28]} 34. Nxf5 {[%clk 0:00:16]}  Be2 {[%clk 0:00:29]} 35. Re1 {[%clk 0:00:16]}  Bg4 {[%clk 0:00:24]} 36. Ne7+ {[%clk 0:00:13]}  Rxe7 {[%clk 0:00:22]} 37. Rxe7 {[%clk 0:00:13]}  Rc2 {[%clk 0:00:23]} 38. f3 {[%clk 0:00:13]}  Be6 {[%clk 0:00:18]} 39. Be3 {[%clk 0:00:10]}  Rc3 {[%clk 0:00:15]} 40. Bg5 {[%clk 0:00:10]}  h3 {[%clk 0:00:14]} 41. b4 {[%clk 0:00:09]}  Rb3 {[%clk 0:00:13]} 42. gxh3 {[%clk 0:00:09]}  Rxb4 {[%clk 0:00:13]} 43. h4 {[%clk 0:00:09]}  Rxa4 {[%clk 0:00:11]} 44. Rxb7 {[%clk 0:00:09]}  Ra2 {[%clk 0:00:11]} 45. h5 {[%clk 0:00:08]}  d4 {[%clk 0:00:11]} 46. h6 {[%clk 0:00:08]}  d3 {[%clk 0:00:10]} 47. Rb8+ {[%clk 0:00:05]}  Kh7 {[%clk 0:00:10]} 48. hxg7 {[%clk 0:00:06]}  Kxg7 {[%clk 0:00:09]} 49. Rd8 {[%clk 0:00:06]}  Bc4 {[%clk 0:00:08]} 50. h4 {[%clk 0:00:06]}  f6 {[%clk 0:00:07]} 51. Bf4 {[%clk 0:00:06]}  Bb5 {[%clk 0:00:05]} 52. h5 {[%clk 0:00:06]}  Ra4 {[%clk 0:00:05]} 53. Be3 {[%clk 0:00:06]}  Rh4 {[%clk 0:00:04]} 54. h6+ {[%clk 0:00:07]}  Kg6 {[%clk 0:00:05]} 55. Kg2 {[%clk 0:00:07]}  Rh5 {[%clk 0:00:04]} 56. Kg3 {[%clk 0:00:07]}  a5 {[%clk 0:00:04]} 57. Rb8 {[%clk 0:00:04]}  a4 {[%clk 0:00:04]} 58. Rb6 {[%clk 0:00:04]}  a3 {[%clk 0:00:04]} 59. Bd4 {[%clk 0:00:04]}  a2 {[%clk 0:00:03]} 60. Rxf6+ {[%clk 0:00:04]}  Kh7 {[%clk 0:00:04]} 61. Rf7+ {[%clk 0:00:04]}  Kxh6 {[%clk 0:00:04]} 62. Ra7 {[%clk 0:00:03]}  d2 {[%clk 0:00:04]} 63. Be3+ {[%clk 0:00:02]}  Kg6 {[%clk 0:00:05]} 64. Bxd2 {[%clk 0:00:03]}  Bc4 {[%clk 0:00:05]} 65. Bc3 {[%clk 0:00:04]}  Rb5 {[%clk 0:00:04]} 66. Ra4 {[%clk 0:00:04]}  Be6 {[%clk 0:00:04]} 67. Kf4 {[%clk 0:00:04]}  Kf7 {[%clk 0:00:04]} 68. Ra7+ {[%clk 0:00:04]}  Ke8 {[%clk 0:00:04]} 69. Ra8+ {[%clk 0:00:05]}  Kd7 {[%clk 0:00:04]} 70. Ra7+ {[%clk 0:00:05]}  Ke8 {[%clk 0:00:04]} 71. Ra5 {[%clk 0:00:05]}  Rxa5 {[%clk 0:00:03]} 72. Ba1 {[%clk 0:00:05]}  Rb5 {[%clk 0:00:03]} 0-1


[Site "https://www.chess.com"]

[Event "Titled Tuesday Blitz August 16 Early 2022"]
[White "Weetik, Vjacheslav"]
[Black "Danielyan, Vahe"]
[WhiteFideId "4153472"]
[BlackFideId "13304828"]
[WhiteElo "2469"]
[BlackElo "2421"]
[Result "1-0"]
[Round "08"]
[TimeControl "180+2"]
[Date "2022.08.18"]
[WhiteClock "0:00:00"]
[BlackClock "0:00:00"]

1. e4 {[%clk 0:00:00]}  d5 {[%clk 0:00:00]} 2. exd5 {[%clk 0:00:00]}  Qxd5 {[%clk 0:00:00]} 3. Nc3 {[%clk 0:00:00]}  Qe5+ {[%clk 0:00:00]} 4. Be2 {[%clk 0:00:00]}  Bg4 {[%clk 0:00:00]} 5. d4 {[%clk 0:00:00]}  Bxe2 {[%clk 0:00:00]} 6. Ngxe2 {[%clk 0:00:00]}  Qa5 {[%clk 0:00:00]} 7. O-O {[%clk 0:00:00]}  Nf6 {[%clk 0:00:00]} 8. Nf4 {[%clk 0:00:00]}  Nc6 {[%clk 0:00:00]} 9. d5 {[%clk 0:00:00]}  O-O-O {[%clk 0:00:00]} 10. Bd2 {[%clk 0:00:00]}  Ne5 {[%clk 0:00:00]} 11. Qe2 {[%clk 0:00:00]}  Ng6 {[%clk 0:00:00]} 12. Nxg6 {[%clk 0:00:00]}  hxg6 {[%clk 0:00:00]} 13. Nb5 {[%clk 0:00:00]}  Qa6 {[%clk 0:00:00]} 14. c4 {[%clk 0:00:00]}  e5 {[%clk 0:00:00]} 15. Be3 {[%clk 0:00:00]}  b6 {[%clk 0:00:00]} 16. a4 {[%clk 0:00:00]}  Qa5 {[%clk 0:00:00]} 17. b4 {[%clk 0:00:00]}  Bxb4 {[%clk 0:00:00]} 18. Rab1 {[%clk 0:00:00]}  Bc5 {[%clk 0:00:00]} 19. Bxc5 {[%clk 0:00:00]}  bxc5 {[%clk 0:00:00]} 20. Qxe5 {[%clk 0:00:00]}  Rhe8 {[%clk 0:00:00]} 21. Qb2 {[%clk 0:00:00]}  Ne4 {[%clk 0:00:00]} 22. Rfe1 {[%clk 0:00:00]}  a6 {[%clk 0:00:00]} 23. Na7+ {[%clk 0:00:00]}  Kd7 {[%clk 0:00:00]} 24. Nc6 {[%clk 0:00:00]}  Qxa4 {[%clk 0:00:00]} 25. Qxg7 {[%clk 0:00:00]}  Nd6 {[%clk 0:00:00]} 26. Nxd8 {[%clk 0:00:00]}  Rxd8 {[%clk 0:00:00]} 27. Qf6 {[%clk 0:00:00]}  Qxc4 {[%clk 0:00:00]} 28. h3 {[%clk 0:00:00]}  Qxd5 {[%clk 0:00:00]} 29. Re7+ {[%clk 0:00:00]}  Kc8 {[%clk 0:00:00]} 30. Qa1 {[%clk 0:00:00]}  Qc6 {[%clk 0:00:00]} 31. Qa5 {[%clk 0:00:00]}  c4 {[%clk 0:00:00]} 32. Rc1 {[%clk 0:00:00]}  Re8 {[%clk 0:00:00]} 33. Rxe8+ {[%clk 0:00:00]}  Nxe8 {[%clk 0:00:00]} 34. Qb4 {[%clk 0:00:00]}  Nd6 {[%clk 0:00:00]} 35. Qc3 {[%clk 0:00:00]}  Qe4 {[%clk 0:00:00]} 36. Qh8+ {[%clk 0:00:00]}  Kd7 {[%clk 0:00:00]} 37. Qc3 {[%clk 0:00:00]}  Qf4 {[%clk 0:00:00]} 38. Rd1 {[%clk 0:00:00]}  Qe4 {[%clk 0:00:00]} 39. Qb4 {[%clk 0:00:00]}  Qc6 {[%clk 0:00:00]} 40. Qc3 {[%clk 0:00:00]}  Qc5 {[%clk 0:00:00]} 41. Qf6 {[%clk 0:00:00]}  Kc6 {[%clk 0:00:00]} 42. Qf3+ {[%clk 0:00:00]}  Kd7 {[%clk 0:00:00]} 43. Qxf7+ {[%clk 0:00:00]}  Kc8 {[%clk 0:00:00]} 44. Qxg6 {[%clk 0:00:00]}  c3 {[%clk 0:00:00]} 45. Rc1 {[%clk 0:00:00]}  Nb5 {[%clk 0:00:00]} 46. h4 {[%clk 0:00:00]}  Qa3 {[%clk 0:00:00]} 47. Re1 {[%clk 0:00:00]}  Qb2 {[%clk 0:00:00]} 48. Qe8+ {[%clk 0:00:00]}  Kb7 {[%clk 0:00:00]} 49. Qe4+ {[%clk 0:00:00]}  Kb6 {[%clk 0:00:00]} 50. Re2 {[%clk 0:00:00]}  Qa1+ {[%clk 0:00:00]} 51. Kh2 {[%clk 0:00:00]}  Qc1 {[%clk 0:00:00]} 52. h5 {[%clk 0:00:00]}  c6 {[%clk 0:00:00]} 53. Qe3+ {[%clk 0:00:00]}  Qxe3 {[%clk 0:00:00]} 54. fxe3 {[%clk 0:00:00]} 1-0


[Site "https://www.chess.com"]

[Event "Titled Tuesday Blitz August 16 Early 2022"]
[White "Winkels, Marcel"]
[Black "Legenia, Artem"]
[WhiteFideId "1003887"]
[BlackFideId "14136945"]
[WhiteElo "1900"]
[BlackElo "1936"]
[Result "0-1"]
[Round "08"]
[TimeControl "180+2"]
[Date "2022.08.18"]
[WhiteClock "0:00:00"]
[BlackClock "0:00:00"]

1. e4 {[%clk 0:00:00]}  Nf6 {[%clk 0:00:00]} 2. e5 {[%clk 0:00:00]}  Nd5 {[%clk 0:00:00]} 3. d4 {[%clk 0:00:00]}  d6 {[%clk 0:00:00]} 4. Nf3 {[%clk 0:00:00]}  Bf5 {[%clk 0:00:00]} 5. Be2 {[%clk 0:00:00]}  e6 {[%clk 0:00:00]} 6. O-O {[%clk 0:00:00]}  Be7 {[%clk 0:00:00]} 7. a3 {[%clk 0:00:00]}  O-O {[%clk 0:00:00]} 8. c4 {[%clk 0:00:00]}  Nb6 {[%clk 0:00:00]} 9. Nc3 {[%clk 0:00:00]}  dxe5 {[%clk 0:00:00]} 10. Nxe5 {[%clk 0:00:00]}  N8d7 {[%clk 0:00:00]} 11. Nf3 {[%clk 0:00:00]}  Bf6 {[%clk 0:00:00]} 12. Be3 {[%clk 0:00:00]}  Qe7 {[%clk 0:00:00]} 13. b4 {[%clk 0:00:00]}  Rfd8 {[%clk 0:00:00]} 14. c5 {[%clk 0:00:00]}  Nd5 {[%clk 0:00:00]} 15. Nxd5 {[%clk 0:00:00]}  exd5 {[%clk 0:00:00]} 16. Re1 {[%clk 0:00:00]}  Nf8 {[%clk 0:00:00]} 17. Bd3 {[%clk 0:00:00]}  Qd7 {[%clk 0:00:00]} 18. Qc2 {[%clk 0:00:00]}  Bxd3 {[%clk 0:00:00]} 19. Qxd3 {[%clk 0:00:00]}  h5 {[%clk 0:00:00]} 20. Bg5 {[%clk 0:00:00]}  Bxg5 {[%clk 0:00:00]} 21. Nxg5 {[%clk 0:00:00]}  Re8 {[%clk 0:00:00]} 22. Qf3 {[%clk 0:00:00]}  Rxe1+ {[%clk 0:00:00]} 23. Rxe1 {[%clk 0:00:00]}  Re8 {[%clk 0:00:00]} 24. Re3 {[%clk 0:00:00]}  Rxe3 {[%clk 0:00:00]} 25. Qxe3 {[%clk 0:00:00]}  Qf5 {[%clk 0:00:00]} 26. h3 {[%clk 0:00:00]}  Ne6 {[%clk 0:00:00]} 27. Nxe6 {[%clk 0:00:00]}  fxe6 {[%clk 0:00:00]} 28. Qg3 {[%clk 0:00:00]}  Qf7 {[%clk 0:00:00]} 29. Qe5 {[%clk 0:00:00]}  Kh7 {[%clk 0:00:00]} 30. b5 {[%clk 0:00:00]}  g6 {[%clk 0:00:00]} 31. a4 {[%clk 0:00:00]}  Qd7 {[%clk 0:00:00]} 32. Qf6 {[%clk 0:00:00]}  a6 {[%clk 0:00:00]} 33. c6 {[%clk 0:00:00]}  bxc6 {[%clk 0:00:00]} 34. bxa6 {[%clk 0:00:00]}  Qc8 {[%clk 0:00:00]} 35. a7 {[%clk 0:00:00]}  Kh6 {[%clk 0:00:00]} 36. Kh2 {[%clk 0:00:00]}  Kh7 {[%clk 0:00:00]} 37. Kg3 {[%clk 0:00:00]}  Kh6 {[%clk 0:00:00]} 38. Kf4 {[%clk 0:00:00]}  Qa8 {[%clk 0:00:00]} 39. Qxe6 {[%clk 0:00:00]}  Qxa7 {[%clk 0:00:00]} 40. Qxc6 {[%clk 0:00:00]}  Qxd4+ {[%clk 0:00:00]} 41. Kg3 {[%clk 0:00:00]}  Qe5+ {[%clk 0:00:00]} 42. f4 {[%clk 0:00:00]}  Qe3+ {[%clk 0:00:00]} 43. Kh2 {[%clk 0:00:00]}  Qxf4+ {[%clk 0:00:00]} 44. Kh1 {[%clk 0:00:00]}  Qe5 {[%clk 0:00:00]} 45. a5 {[%clk 0:00:00]}  Qe1+ {[%clk 0:00:00]} 46. Kh2 {[%clk 0:00:00]}  Qxa5 {[%clk 0:00:00]} 47. Qf6 {[%clk 0:00:00]}  Qb6 {[%clk 0:00:00]} 48. Qf8+ {[%clk 0:00:00]}  Kg5 {[%clk 0:00:00]} 49. Qd8+ {[%clk 0:00:00]}  Qf6 {[%clk 0:00:00]} 50. Qxd5+ {[%clk 0:00:00]}  Qf5 {[%clk 0:00:00]} 51. Qd8+ {[%clk 0:00:00]}  Qf6 {[%clk 0:00:00]} 52. Qd2+ {[%clk 0:00:00]}  Qf4+ {[%clk 0:00:00]} 0-1


[Site "https://www.chess.com"]

[Event "Titled Tuesday Blitz August 16 Early 2022"]
[White "Yaksin, Oleg"]
[Black "Tarasova, Viktoriya"]
[WhiteFideId "24105880"]
[BlackFideId "4175840"]
[WhiteElo "2256"]
[BlackElo "2182"]
[Result "0-1"]
[Round "08"]
[TimeControl "180+2"]
[Date "2022.08.18"]
[WhiteClock "0:00:00"]
[BlackClock "0:00:00"]

1. d4 {[%clk 0:00:00]}  Nf6 {[%clk 0:00:00]} 2. Bg5 {[%clk 0:00:00]}  d5 {[%clk 0:00:00]} 3. Bxf6 {[%clk 0:00:00]}  gxf6 {[%clk 0:00:00]} 4. e3 {[%clk 0:00:00]}  Bf5 {[%clk 0:00:00]} 5. Bd3 {[%clk 0:00:00]}  Bxd3 {[%clk 0:00:00]} 6. Qxd3 {[%clk 0:00:00]}  c6 {[%clk 0:00:00]} 7. Nd2 {[%clk 0:00:00]}  e5 {[%clk 0:00:00]} 8. c3 {[%clk 0:00:00]}  Nd7 {[%clk 0:00:00]} 9. Ne2 {[%clk 0:00:00]}  Bd6 {[%clk 0:00:00]} 10. Qf5 {[%clk 0:00:00]}  Qe7 {[%clk 0:00:00]} 11. O-O-O {[%clk 0:00:00]}  O-O-O {[%clk 0:00:00]} 12. Kb1 {[%clk 0:00:00]}  Rdg8 {[%clk 0:00:00]} 13. Ng3 {[%clk 0:00:00]}  Qe6 {[%clk 0:00:00]} 14. Qc2 {[%clk 0:00:00]}  h5 {[%clk 0:00:00]} 15. Rhg1 {[%clk 0:00:00]}  h4 {[%clk 0:00:00]} 16. Nf5 {[%clk 0:00:00]}  Bf8 {[%clk 0:00:00]} 17. g4 {[%clk 0:00:00]}  hxg3 {[%clk 0:00:00]} 18. hxg3 {[%clk 0:00:00]}  Rg5 {[%clk 0:00:00]} 19. g4 {[%clk 0:00:00]}  Rgg8 {[%clk 0:00:00]} 20. Rg2 {[%clk 0:00:00]}  e4 {[%clk 0:00:00]} 21. Rdg1 {[%clk 0:00:00]}  Rh3 {[%clk 0:00:00]} 22. a3 {[%clk 0:00:00]}  Kb8 {[%clk 0:00:00]} 23. c4 {[%clk 0:00:00]}  Rgh8 {[%clk 0:00:00]} 24. cxd5 {[%clk 0:00:00]}  cxd5 {[%clk 0:00:00]} 25. Ka2 {[%clk 0:00:00]}  Bd6 {[%clk 0:00:00]} 26. Nf1 {[%clk 0:00:00]}  Rc8 {[%clk 0:00:00]} 27. Qb3 {[%clk 0:00:00]}  Nb6 {[%clk 0:00:00]} 28. Nxd6 {[%clk 0:00:00]}  Qxd6 {[%clk 0:00:00]} 29. g5 {[%clk 0:00:00]}  f5 {[%clk 0:00:00]} 30. g6 {[%clk 0:00:00]}  fxg6 {[%clk 0:00:00]} 31. Rxg6 {[%clk 0:00:00]}  Qc7 {[%clk 0:00:00]} 32. Ng3 {[%clk 0:00:00]}  f4 {[%clk 0:00:00]} 33. Nf5 {[%clk 0:00:00]}  fxe3 {[%clk 0:00:00]} 34. fxe3 {[%clk 0:00:00]}  Rh2 {[%clk 0:00:00]} 35. Nd6 {[%clk 0:00:00]}  Rd8 {[%clk 0:00:00]} 36. Nb5 {[%clk 0:00:00]}  Qc4 {[%clk 0:00:00]} 37. Rg8 {[%clk 0:00:00]}  Rh8 {[%clk 0:00:00]} 38. Rxh8 {[%clk 0:00:00]}  Rxh8 {[%clk 0:00:00]} 39. Rg3 {[%clk 0:00:00]}  Qxb3+ {[%clk 0:00:00]} 40. Kxb3 {[%clk 0:00:00]}  Rd8 {[%clk 0:00:00]} 41. Nc3 {[%clk 0:00:00]}  a6 {[%clk 0:00:00]} 42. Rh3 {[%clk 0:00:00]}  Ka7 {[%clk 0:00:00]} 43. Ne2 {[%clk 0:00:00]}  Nc4 {[%clk 0:00:00]} 44. Nf4 {[%clk 0:00:00]}  b5 {[%clk 0:00:00]} 45. Ne6 {[%clk 0:00:00]}  Rd7 {[%clk 0:00:00]} 46. Nc5 {[%clk 0:00:00]}  Rf7 {[%clk 0:00:00]} 47. Kc3 {[%clk 0:00:00]}  Rf3 {[%clk 0:00:00]} 48. Rxf3 {[%clk 0:00:00]}  exf3 {[%clk 0:00:00]} 49. Nd3 {[%clk 0:00:00]}  Nxe3 {[%clk 0:00:00]} 50. Nf2 {[%clk 0:00:00]}  Kb6 {[%clk 0:00:00]} 51. Kd3 {[%clk 0:00:00]}  Nc4 {[%clk 0:00:00]} 52. b3 {[%clk 0:00:00]}  Nd6 {[%clk 0:00:00]} 53. Ke3 {[%clk 0:00:00]}  Ne4 {[%clk 0:00:00]} 54. Nd3 {[%clk 0:00:00]}  Ng5 {[%clk 0:00:00]} 55. Nb4 {[%clk 0:00:00]}  Kc7 {[%clk 0:00:00]} 56. Nxd5+ {[%clk 0:00:00]}  Kd6 {[%clk 0:00:00]} 57. Nc3 {[%clk 0:00:00]}  Ke6 {[%clk 0:00:00]} 58. Kf2 {[%clk 0:00:00]}  Kf5 {[%clk 0:00:00]} 59. Kg3 {[%clk 0:00:00]}  Ne4+ {[%clk 0:00:00]} 60. Nxe4 {[%clk 0:00:00]}  Kxe4 {[%clk 0:00:00]} 61. d5 {[%clk 0:00:00]}  Kxd5 {[%clk 0:00:00]} 62. Kxf3 {[%clk 0:00:00]}  Kd4 {[%clk 0:00:00]} 63. Ke2 {[%clk 0:00:00]}  Kc3 {[%clk 0:00:00]} 64. b4 {[%clk 0:00:00]}  Kb3 {[%clk 0:00:00]} 65. Kd3 {[%clk 0:00:00]}  Kxa3 {[%clk 0:00:00]} 66. Kc3 {[%clk 0:00:00]}  Ka4 {[%clk 0:00:00]} 0-1


[Site "https://www.chess.com"]

[Event "Titled Tuesday Blitz August 16 Early 2022"]
[White "Yurovskykh, Oleksandr"]
[Black "Jaferian, Koosha"]
[WhiteFideId "14134020"]
[BlackFideId "12507440"]
[WhiteElo "2292"]
[BlackElo "2030"]
[Result "0-1"]
[Round "08"]
[TimeControl "180+2"]
[Date "2022.08.18"]
[WhiteClock "0:00:00"]
[BlackClock "0:00:00"]

1. d4 {[%clk 0:00:00]}  Nf6 {[%clk 0:00:00]} 2. Nf3 {[%clk 0:00:00]}  e6 {[%clk 0:00:00]} 3. Bf4 {[%clk 0:00:00]}  c5 {[%clk 0:00:00]} 4. c3 {[%clk 0:00:00]}  Nc6 {[%clk 0:00:00]} 5. e3 {[%clk 0:00:00]}  d5 {[%clk 0:00:00]} 6. Nbd2 {[%clk 0:00:00]}  Bd6 {[%clk 0:00:00]} 7. Bg3 {[%clk 0:00:00]}  O-O {[%clk 0:00:00]} 8. Bb5 {[%clk 0:00:00]}  Ne7 {[%clk 0:00:00]} 9. Bd3 {[%clk 0:00:00]}  Nf5 {[%clk 0:00:00]} 10. Bxf5 {[%clk 0:00:00]}  exf5 {[%clk 0:00:00]} 11. Bxd6 {[%clk 0:00:00]}  Qxd6 {[%clk 0:00:00]} 12. dxc5 {[%clk 0:00:00]}  Qxc5 {[%clk 0:00:00]} 13. O-O {[%clk 0:00:00]}  Bd7 {[%clk 0:00:00]} 14. Nd4 {[%clk 0:00:00]}  Ne4 {[%clk 0:00:00]} 15. Nxe4 {[%clk 0:00:00]}  fxe4 {[%clk 0:00:00]} 16. Qb3 {[%clk 0:00:00]}  Bc6 {[%clk 0:00:00]} 17. Rfd1 {[%clk 0:00:00]}  Rfd8 {[%clk 0:00:00]} 18. Rd2 {[%clk 0:00:00]}  Rac8 {[%clk 0:00:00]} 19. Rad1 {[%clk 0:00:00]}  Qd6 {[%clk 0:00:00]} 20. h3 {[%clk 0:00:00]}  Qf6 {[%clk 0:00:00]} 21. Ne2 {[%clk 0:00:00]}  g5 {[%clk 0:00:00]} 22. Rd4 {[%clk 0:00:00]}  h5 {[%clk 0:00:00]} 23. h4 {[%clk 0:00:00]}  gxh4 {[%clk 0:00:00]} 24. Nf4 {[%clk 0:00:00]}  Qg5 {[%clk 0:00:00]} 25. Kh2 {[%clk 0:00:00]}  Rd6 {[%clk 0:00:00]} 26. c4 {[%clk 0:00:00]}  dxc4 {[%clk 0:00:00]} 27. Qxc4 {[%clk 0:00:00]}  Rxd4 {[%clk 0:00:00]} 28. Qxd4 {[%clk 0:00:00]}  a6 {[%clk 0:00:00]} 29. a3 {[%clk 0:00:00]}  Re8 {[%clk 0:00:00]} 30. b4 {[%clk 0:00:00]}  Re5 {[%clk 0:00:00]} 31. Qd8+ {[%clk 0:00:00]}  Qxd8 {[%clk 0:00:00]} 32. Rxd8+ {[%clk 0:00:00]}  Kg7 {[%clk 0:00:00]} 33. Kh3 {[%clk 0:00:00]}  a5 {[%clk 0:00:00]} 34. Kxh4 {[%clk 0:00:00]}  axb4 {[%clk 0:00:00]} 35. axb4 {[%clk 0:00:00]}  Rb5 {[%clk 0:00:00]} 36. Rd4 {[%clk 0:00:00]}  Kh6 {[%clk 0:00:00]} 37. Kg3 {[%clk 0:00:00]}  Rg5+ {[%clk 0:00:00]} 38. Kh2 {[%clk 0:00:00]}  Rb5 {[%clk 0:00:00]} 39. Kg1 {[%clk 0:00:00]}  Kg5 {[%clk 0:00:00]} 40. Ne2 {[%clk 0:00:00]}  h4 {[%clk 0:00:00]} 41. Nc3 {[%clk 0:00:00]}  Re5 {[%clk 0:00:00]} 42. b5 {[%clk 0:00:00]}  Bxb5 {[%clk 0:00:00]} 43. Nxe4+ {[%clk 0:00:00]}  Kg6 {[%clk 0:00:00]} 44. Nd6 {[%clk 0:00:00]}  Bc6 {[%clk 0:00:00]} 45. Rxh4 {[%clk 0:00:00]}  b5 {[%clk 0:00:00]} 46. Rd4 {[%clk 0:00:00]}  Rc5 {[%clk 0:00:00]} 47. e4 {[%clk 0:00:00]}  Kf6 {[%clk 0:00:00]} 48. f4 {[%clk 0:00:00]}  Rc2 {[%clk 0:00:00]} 49. g4 {[%clk 0:00:00]}  Ke7 {[%clk 0:00:00]} 50. g5 {[%clk 0:00:00]}  Rb2 {[%clk 0:00:00]} 51. Nf5+ {[%clk 0:00:00]}  Ke8 {[%clk 0:00:00]} 52. Nd6+ {[%clk 0:00:00]}  Ke7 {[%clk 0:00:00]} 53. Nf5+ {[%clk 0:00:00]}  Ke8 {[%clk 0:00:00]} 54. Ne3 {[%clk 0:00:00]}  b4 {[%clk 0:00:00]} 55. Nd5 {[%clk 0:00:00]}  b3 {[%clk 0:00:00]} 56. Nf6+ {[%clk 0:00:00]}  Ke7 {[%clk 0:00:00]} 57. Rb4 {[%clk 0:00:00]}  Kd6 {[%clk 0:00:00]} 58. Kf1 {[%clk 0:00:00]}  Kc5 {[%clk 0:00:00]} 59. Rb8 {[%clk 0:00:00]}  Bb5+ {[%clk 0:00:00]} 60. Ke1 {[%clk 0:00:00]}  Re2+ {[%clk 0:00:00]} 0-1


[Site "https://www.chess.com"]

[Event "Titled Tuesday Blitz August 16 Early 2022"]
[White "Ziatdinov, Raset"]
[Black "Navarrete Mendez, Gonzalo Alberto"]
[WhiteFideId "2015323"]
[BlackFideId "5106850"]
[WhiteElo "2220"]
[BlackElo "2261"]
[Result "1-0"]
[Round "08"]
[TimeControl "180+2"]
[Date "2022.08.18"]
[WhiteClock "0:00:00"]
[BlackClock "0:00:00"]

1. e4 {[%clk 0:00:00]}  e5 {[%clk 0:00:00]} 2. Nf3 {[%clk 0:00:00]}  Nc6 {[%clk 0:00:00]} 3. Bb5 {[%clk 0:00:00]}  a6 {[%clk 0:00:00]} 4. Ba4 {[%clk 0:00:00]}  d6 {[%clk 0:00:00]} 5. d4 {[%clk 0:00:00]}  b5 {[%clk 0:00:00]} 6. Bb3 {[%clk 0:00:00]}  Nxd4 {[%clk 0:00:00]} 7. Nxd4 {[%clk 0:00:00]}  exd4 {[%clk 0:00:00]} 8. Bd5 {[%clk 0:00:00]}  Rb8 {[%clk 0:00:00]} 9. Qxd4 {[%clk 0:00:00]}  Nf6 {[%clk 0:00:00]} 10. Bg5 {[%clk 0:00:00]}  Be7 {[%clk 0:00:00]} 11. Nc3 {[%clk 0:00:00]}  Nxd5 {[%clk 0:00:00]} 12. Qxg7 {[%clk 0:00:00]}  Rf8 {[%clk 0:00:00]} 13. Nxd5 {[%clk 0:00:00]}  Bxg5 {[%clk 0:00:00]} 14. h4 {[%clk 0:00:00]}  Be7 {[%clk 0:00:00]} 15. O-O-O {[%clk 0:00:00]}  Be6 {[%clk 0:00:00]} 16. e5 {[%clk 0:00:00]}  Bxd5 {[%clk 0:00:00]} 17. Rxd5 {[%clk 0:00:00]}  c6 {[%clk 0:00:00]} 18. Rd3 {[%clk 0:00:00]}  d5 {[%clk 0:00:00]} 19. Qxh7 {[%clk 0:00:00]}  Qa5 {[%clk 0:00:00]} 20. Kb1 {[%clk 0:00:00]}  Qb4 {[%clk 0:00:00]} 21. h5 {[%clk 0:00:00]}  Qg4 {[%clk 0:00:00]} 22. Rdh3 {[%clk 0:00:00]}  Qxg2 {[%clk 0:00:00]} 23. h6 {[%clk 0:00:00]}  Qg6 {[%clk 0:00:00]} 24. Qxg6 {[%clk 0:00:00]}  fxg6 {[%clk 0:00:00]} 25. h7 {[%clk 0:00:00]}  Rh8 {[%clk 0:00:00]} 26. Rg1 {[%clk 0:00:00]}  Kf7 {[%clk 0:00:00]} 27. Rh6 {[%clk 0:00:00]}  Bc5 {[%clk 0:00:00]} 28. Rgxg6 {[%clk 0:00:00]}  Rxh7 {[%clk 0:00:00]} 29. e6+ {[%clk 0:00:00]}  Ke7 {[%clk 0:00:00]} 30. Rxh7+ {[%clk 0:00:00]}  Kd6 {[%clk 0:00:00]} 31. f4 {[%clk 0:00:00]}  Rf8 {[%clk 0:00:00]} 32. Rd7# {[%clk 0:00:00]} 1-0


[Site "https://www.chess.com"]